Workbook

Sheet Resumo
A1: Ministério da Integração e do Desenvolvimento Regional - MIDR
A2: Companhia de Desenvolvimento dos Vales do São Francisco e do Parnaíba
A3: 4ª Superintendência Regional da CODEVASF - 4ª SR
A4: Gerência Regional de Administração e Tecnologia - 4ª/GRA
A5: Planilha de custos - Resumo
A6: Discriminação dos Serviços
A7: Serviços de Condução Veicular para SEDE da 4ª Superintendência Regional da Codevasf
A8: Os salarios estão baseados na Convenção Coletiva de Trabalho 2024/2024 dos SEAC e SINDECESE, do estado de Sergipe. Conforme Anexo I (Pisos Normativos) da CCT 2024/2024.
A11: VALOR MENSAL E GLOBAL DOS SERVIÇOS - 4ªSR
A13: CUSTOS FIXOS
A14: ITEM | B14: CÓDIGO CATSER | C14: POSTO DE SERVIÇO | D14: Descrição Sumária | E14: QTDE DE POSTOS | F14: VALOR UNITÁRIO POSTO (R$) | H14: VALOR TOTAL MENSAL (R$) | J14: Nº DE MESES | K14: VALOR ANUAL (R$)
A15: 1 | B15: 15008 | C15: =Motorista!A18 -> Motorista com auxilio na carga e descarga | D15: Transportam, coletam e entregam cargas em geral; guincham, destombam e removem veículos avariados e prestam socorro mecânico. Realizar inspeções e reparos em veículos, vistoriar cargas, além de verificar documentação de veículos e de cargas. Definem rotas e asseguram a regularidade do transporte. As atividades são desenvolvidas em conformidade com normas e procedimentos técnicos e de segurança. Dirigem e manobram veículos e transportam pessoas, cargas, valores. Realizam verificações e manutenções básicas do veículo e utilizam equipamentos e dispositivos especiais tais como sinalização sonora e luminosa, software de navegação e outros. Efetuam pagamentos e recebimentos e, no desempenho das atividades, utilizam-se de capacidades comunicativas. Trabalham seguindo normas de segurança, higiene, qualidade e proteção ao meio ambiente. | E15: =Motorista!H14 -> 3 | F15: =Motorista!H99 -> 6381.96333 | H15: =E15*F15 -> 19145.88999 | J15: 12 | K15: =H15*J15 -> 229750.6799
A16: TOTAL DOS CUSTOS FIXOS | E16: =SUM(E15:E15) -> 3 | H16: =SUM(H15:I15) -> 19145.88999 | K16: =SUM(K15:L15) -> 229750.6799
A18: CUSTOS VARIÁVEIS
A19: Descrição | E19: QUANT | F19: VALOR UNITÁRIO (R$) | H19: Valor Mensal | J19: Nº DE MESES | K19: VALOR ANUAL (R$)
A20: Horas extras a 50% - Motorista | E20: 24 | F20: 37.32 | H20: =E20*F20 -> 895.68 | J20: 12 | K20: =H20*J20 -> 10748.16
A21: Alimentação - Capital | E21: 4 | F21: 100.59 | H21: =E21*F21 -> 402.36 | J21: 12 | K21: 4828.32
A22: Pernoite - Capital | E22: 4 | F22: 345.08 | H22: =E22*F22 -> 1380.32 | J22: 12 | K22: 16563.84
A23: Alimentação - Demais Localidades | E23: 40 | F23: 100.59 | H23: =E23*F23 -> 4023.6 | J23: 12 | K23: 48283.2
A24: Pernoite - Demais Localidades | E24: 12 | F24: 252.8 | H24: 3033.6 | J24: 12 | K24: 36403.2
A25: Lucro e despesas indiretas (15%) + Tributos (8,65%), incidência sobre alimentação e pernoite | E25: - | F25: 0.2365 | H25: =SUM(H21:I24)*F25 -> 2090.63162 | J25: 12 | K25: 25087.57944
A26: TOTAL DOS CUSTOS VARIÁVEIS | H26: =SUM(H20:I25) -> 11826.19162 | K26: =SUM(K20:L25) -> 141914.2994
A28: RESUMO GERAL | H28: Valor Mensal | J28: Nº DE MESES | K28: VALOR ANUAL (R$)
A29: VALOR TOTAL DO CUSTOS FIXOS | H29: =H16 -> 19145.88999 | J29: 12 | K29: =H29*J29 -> 229750.6799
A30: VALOR TOTAL DO CUSTOS VARIÁVEIS | H30: =H26 -> 11826.19162 | J30: 12 | K30: =H30*J30 -> 141914.2994
A31: VALOR TOTAL DO CONTRATO | H31: =H29+H30 -> 30972.08161 | J31: 12 | K31: =H31*J31 -> 371664.9793
A33: Aracaju/SE, 10 de junho de 2024.
A35: 1 - Para a elaboração das Planilhas de Custo e Formação de Preço foram adotados os salários base de acordo com a Convenção Coletiva de Trabalho 2024/2024 do SINDECESE e SEAC do estado de Sergipe e anexos, tabela de diárias da CODEVASF e média das cotações dos uniformes realizadas em maio de 2024.

Sheet Motorista
A1: Ministério da Integração e do Desenvolvimento Regional - MIDR
A2: Companhia de Desenvolvimento dos Vales do São Francisco e do Parnaíba
A3: 4ª Superintendência Regional da CODEVASF - 4ª SR
A4: Gerência Regional de Administração e Tecnologia - 4ª/GRA
A5: Planilha de Custos e Formação de Preços Motorista de Veículo
A7: PLANILHA DE CUSTOS E FORMAÇÃO DE PREÇOS
A8: Ano - Acordo, Convenção Coletiva ou Sentença Normativa em Dissídio | H8: SINDECESE - SERGIPE - 2024/2024
A9: Convenção/Acordo Coletivo de Trabalho - Nº do processo e Registro no MTE | H9: 19980.242973/2024-31 - MR008304/2024
A10: Vigência da Convenção | H10: 01 de janeiro/2024 a 31 de dezembro/2024
A11: Tipo de Serviço | H11: MOTORISTA
A12: Unidade de Medida | H12: POSTO
A13: Carga Horária Semanal | H13: 40 hrs
A14: Quantidade a Contratar em Função da Unidade de Medida | H14: 3
A15: Nº de Meses de Execução Contratual | H15: 12
A17: I - SALÁRIO ESTIMADO DO PROFISSIONAL
A18: Motorista com auxilio na carga e descarga | H18: 2482.05
A20: II - COMPOSIÇÃO DA REMUNERAÇÃO
A21: Salário Base | H21: =H18 -> 2482.05
A22: Outros | H22: 0
A23: Remuneração Total | H23: =SUM(H21:H22) -> 2482.05
A25: III - ENCARGOS SOCIAIS INCIDENTES SOBRE A REMUNERAÇÃO
A26: Grupo "A" | H26: % | I26: VALOR
A27: 01 - INSS | H27: 0.2 | I27: =H23*H27 -> 496.41
A28: 02 - Salário Educação | H28: 0.025 | I28: =H23*H28 -> 62.05125
A29: 03 - Seguro Acidente do Trabalho/SAT/INSS | H29: 0.03 | I29: =H23*H29 -> 74.4615
A30: 04 - SESI/SESC | H30: 0.015 | I30: =H23*H30 -> 37.23075
A31: 05 - SENAI/SENAC | H31: 0.01 | I31: =H23*H31 -> 24.8205
A32: 06 - INCRA | H32: 0.002 | I32: =H23*H32 -> 4.9641
A33: 07 - FGTS | H33: 0.08 | I33: =H23*H33 -> 198.564
A34: 08 - SEBRAE | H34: 0.006 | I34: =H23*H34 -> 14.8923
A35: Total do Grupo "A" | H35: =SUM(H27:H34) -> 0.368 | I35: =SUM(I27:I34) -> 913.3944
A37: Grupo "B" | H37: % | I37: VALOR
A38: 09 - Férias | H38: 0.1203 | I38: =H23*H38 -> 298.590615
A39: 10 - Auxílio Doença | H39: 0.0265 | I39: =H23*H39 -> 65.774325
A40: 11 - Licença Maternidade/Paternidade | H40: 0.0133 | I40: =H23*H40 -> 33.011265
A41: 12 - Faltas Legais | H41: 0.0228 | I41: =H23*H41 -> 56.59074
A42: 13 - Acidente do Trabalho | H42: 0.013 | I42: =H23*H42 -> 32.26665
A43: 14 - Aviso Prévio Trabalhado . (Artigo 7ª, XXI, CF/88, 477, 487 e ss da CLT) | H43: 0.0137 | I43: =H23*H43 -> 34.004085
A44: 15 - 13º Salário | H44: 0.0833 | I44: =H23*H44 -> 206.754765
A45: Total do Grupo "B" | H45: =SUM(H38:H44) -> 0.2929 | I45: =SUM(I38:I44) -> 726.992445
A47: Grupo "C" | H47: % | I47: VALOR
A48: 16 - Aviso Prévio Indenizado | H48: 0.0354 | I48: =H23*H48 -> 87.86457
A49: 17 - Indenização (rescisão sem justa causa) | H49: 0.032 | I49: =H23*H49 -> 79.4256
A50: 18 - Indenização adicional | H50: 0.018 | I50: =H23*H50 -> 44.6769
A51: Total do Grupo "C" | H51: =SUM(H48:H50) -> 0.0854 | I51: =SUM(I48:I50) -> 211.96707
A53: Grupo "D" | H53: % | I53: VALOR
A54: 19 - Incidência dos encargos do Grupo "A" sobre o Grupo "B" | H54: 0.1078 | I54: =H23*H54 -> 267.56499
A55: Total do Grupo "D" | H55: =SUM(H54:H54) -> 0.1078 | I55: =SUM(I54:I54) -> 267.56499
A57: TOTAL DO ENCARGOS SOCIAIS
A58: 20 - Total de encargos sociais | H58: =H35+H45+H51+H55 -> 0.8541 | I58: =H23*H58 -> 2119.918905
A60: VALOR TOTAL DA MÃO DE OBRA (REMUNERAÇÃO + ENCARGOS SOCIAIS) | I60: =H23+I58 -> 4601.968905
A62: IV - INSUMOS
A63: IV.A - Benefícios Mensais e Diários | H63: VALOR
A64: 01 - Auxílio Alimentação - Cláusula 10ª da CCT (R$ 15,50 * 22 dias) | I64: =(15.5*22) -> 341
A65: 02 - Desconto sobre Auxílio Alimentação - Cláusula 10ª da CCT (R$ 341,00 * 10%) | I65: =-I64*0.1 -> -34.1
A66: 03 - Vale Transporte - Cláusula 11ª da CCT | I66: =44*4.5 -> 198 | J66: Conforme Decreto nº 6.792/2022 do Município de Aracaju/SE.
A67: 04 - Desconto Legal sobre Vale Transporte - Cláusula 11ª da CCT | I67: =IF((H18*0.06)<I66,-(H18*0.06),-I66) -> -148.923
A68: 05 - Do Benefício ao Trabalhador - Cláusula 8ª da CCT | I68: 15
A69: 06 - Plano Odontológico - Cláusula 12ª da CCT | I69: 13
A70: 07 - Da Assistência Social Familiar - Cláusula 13ª da CCT | I70: 6
A71: Total do Subitem IV.A | I71: =SUM(I64:I70) -> 389.977
A73: IV.B - Insumos Diversos | H73: VALOR
A74: 08 - Material | I74: 0
A75: 09 - Equipamento de Proteção Individual - EPI (Norma Regulamentadora nº 4) - Cláusula 20ª da CCT | I75: 0
A76: 10 - Uniforme | I76: 115.77
A77: 11 - Depreciação e Manutenção de Equipamentos | I77: 0
A78: Total do Subitem IV.B | I78: =SUM(I74:I77) -> 115.77
A80: Valor Total dos Insumos (Subitem IV.A + Subitem IV.B) | I80: =I71+I78 -> 505.747
A82: VALOR TOTAL DA REMUNERAÇÃO + ENCARGOS SOCIAIS + INSUMOS | I82: =H23+I58+I80 -> 5107.715905
A84: V - LUCRO E DESPESAS INDIRETAS (LDI)
A85: Demais Componentes/Custos Indiretos | H85: % | I85: VALOR
A86: 01 - Despesas Administrativas/Operacionais | H86: 0.05 | I86: =I82*H86 -> 255.3857953
A87: 02 - Lucro | H87: 0.1 | I87: =I82*H87 -> 510.7715905
A88: Valor Total do Lucro e Despesas Indiretas (LDI) | H88: =SUM(H86:H87) -> 0.15 | I88: =SUM(I86:I87) -> 766.1573858
A90: VI - TRIBUTOS
A91: Tributos Diversos | H91: % | I91: VALOR
A92: ISSQN e ISS | H92: 0.05 | I92: =(I82+I88)*H92 -> 293.6936645
A93: PIS | H93: 0.0065 | I93: =(I82+I88)*H93 -> 38.18017639
A94: COFINS | H94: 0.03 | I94: =(I82+I88)*H94 -> 176.2161987
A95: Outros | H95: 0 | I95: =(I82+I88)*H95 -> 0
A96: Valor Total dos Tributos (8,65/100 * II + III + IV + V) | H96: =SUM(H92:H95) -> 0.0865 | I96: =SUM(I92:I95) -> 508.0900396
A98: VII - VALOR TOTAL DA CONTRATAÇÃO - POSTO DE MOTORISTA DE VEICULO | H98: MENSAL | I98: ANUAL
A99: VALOR TOTAL - 01 POSTO (MOTORISTA DE VEICULO) | H99: =I82+I88+I96 -> 6381.96333 | I99: =H99*12 -> 76583.55996
A100: VALOR TOTAL - 03 POSTOS (MOTORISTA DE VEICULO ) | H100: =H99*H14 -> 19145.88999 | I100: =H100*12 -> 229750.6799

Sheet Resumo para o TR
A1: Ministério da Integração e do Desenvolvimento Regional - MIDR
A2: Companhia de Desenvolvimento dos Vales do São Francisco e do Parnaíba
A3: 4ª Superintendência Regional da CODEVASF - 4ªSR
A4: Gerência Regional de Administração e Tecnologia - 4ª/GRA
A5: Planilha de custos - Resumo
A6: Discriminação dos Serviços
A7: =Resumo!A7 -> Serviços de Condução Veicular para SEDE da 4ª Superintendência Regional da Codevasf
A8: =Resumo!A8 -> Os salarios estão baseados na Convenção Coletiva de Trabalho 2024/2024 dos SEAC e SINDECESE, do estado de Sergipe. Conforme Anexo I (Pisos Normativos) da CCT 2024/2024.
A11: VALOR MENSAL E GLOBAL DOS SERVIÇOS-2ªSR
A13: CUSTOS FIXOS
A14: ITEM | B14: CÓDIGOCATSER | C14: POSTO DE SERVIÇO | F14: QTDE DE POSTOS | G14: VALOR UNITÁRIO POSTO (R$) | I14: Intervalo Mínimo | J14: VALOR TOTAL MENSAL (R$) | L14: Nº DE MESES | M14: VALOR ANUAL (R$)
A15: 1 | B15: 15008 | C15: =Resumo!C15 -> Motorista com auxilio na carga e descarga | F15: =Resumo!E15 -> 3 | G15: =Motorista!H99 -> 6381.96333 | J15: =F15*G15 -> 19145.88999 | L15: 12 | M15: =J15*L15 -> 229750.6799
A16: TOTAL DOS CUSTOS FIXOS | F16: =SUM(F15:F15) -> 3 | J16: =SUM(J15:K15) -> 19145.88999 | M16: =SUM(M15:N15) -> 229750.6799
A18: CUSTOS VARIÁVEIS
A19: Descrição | J19: Valor Mensal | L19: Nº DE MESES | M19: VALOR ANUAL (R$)
A20: =Resumo!A20 -> Horas extras a 50% - Motorista | J20: =Resumo!H20 -> 895.68 | L20: 12 | M20: =J20*L20 -> 10748.16
A21: =Resumo!A21 -> Alimentação - Capital | J21: =Resumo!H21 -> 402.36 | L21: 12 | M21: 4828.32
A22: =Resumo!A22 -> Pernoite - Capital | J22: =Resumo!H22 -> 1380.32 | L22: 12 | M22: 16563.84
A23: =Resumo!A23 -> Alimentação - Demais Localidades | J23: =Resumo!H23 -> 4023.6 | L23: 12 | M23: 48283.2
A24: =Resumo!A24 -> Pernoite - Demais Localidades | J24: =Resumo!H24 -> 3033.6 | L24: 12 | M24: 36403.2
A25: Lucro e despesas indiretas (15%) + Tributos (8,65%), incidência sobre alimentação e pernoite | J25: =Resumo!H25 -> 2090.63162 | L25: 12 | M25: 25087.57944
A26: TOTAL DOS CUSTOS VARIÁVEIS | J26: =SUM(J20:K25) -> 11826.19162 | M26: =SUM(M20:N25) -> 141914.2994
A28: RESUMO GERAL | J28: Valor Mensal | L28: Nº DE MESES | M28: VALOR ANUAL (R$)
A29: VALOR TOTAL DO CUSTOS FIXOS | J29: =J16 -> 19145.88999 | L29: 12 | M29: =J29*L29 -> 229750.6799
A30: VALOR TOTAL DO CUSTOS VARIÁVEIS | J30: =J26 -> 11826.19162 | L30: 12 | M30: =J30*L30 -> 141914.2994
A31: VALOR TOTAL DO CONTRATO | J31: =SUM(J29:K30) -> 30972.08161 | L31: 12 | M31: =J31*L31 -> 371664.9793
A33: =Resumo!A33 -> Aracaju/SE, 10 de junho de 2024.
A35: =Resumo!A35 -> 1 - Para a elaboração das Planilhas de Custo e Formação de Preço foram adotados os salários base de acordo com a Convenção Coletiva de Trabalho 2024/2024 do SINDECESE e SEAC do estado de Sergipe e anexos, tabela de diárias da CODEVASF e média das cotações dos uniformes realizadas em maio de 2024.
